bitfinex/quotes_BTCUSD_20250825
["timestamp","ask_amount","ask_price","bid_price","bid_amount"]
[1756136498219,0.55924555,112560.0,112550.0,4.791e-05]
[1756136498440,0.56024555,112560.0,112550.0,4.791e-05]
[1756136498648,0.53590878,112560.0,112550.0,4.791e-05]
[1756136498856,0.67462758,112560.0,112550.0,4.791e-05]
[1756136499498,0.67162758,112560.0,112550.0,4.791e-05]
[1756136499716,0.67362758,112560.0,112550.0,4.791e-05]
[1756136500136,0.61808678,112560.0,112550.0,4.791e-05]
[1756136500603,0.67362758,112560.0,112550.0,4.791e-05]
[1756136500839,0.67662758,112560.0,112550.0,4.791e-05]
[1756136501049,0.67960845,112560.0,112550.0,4.791e-05]
[1756136501464,0.65027168,112560.0,112550.0,4.791e-05]
[1756136501686,0.65225901,112560.0,112550.0,4.791e-05]
[1756136502121,0.55405524,112560.0,112550.0,4.791e-05]
[1756136502541,0.54781826,112560.0,112550.0,0.00302791]
[1756136502754,0.54781826,112560.0,112550.0,4.791e-05]
[1756136502984,0.55416705,112560.0,112550.0,4.791e-05]
[1756136503206,0.54493826,112560.0,112550.0,4.791e-05]
[1756136503443,0.61919881,112560.0,112550.0,4.791e-05]
[1756136503654,0.62542515,112560.0,112550.0,4.791e-05]
[1756136505133,0.63933398,112560.0,112550.0,4.791e-05]
[1756136506078,0.69487478,112560.0,112550.0,4.791e-05]
[1756136506781,0.69487478,112560.0,112530.0,1e-08]
[1756136506782,0.51771459,112540.0,112530.0,1e-08]
[1756136507028,0.60385048,112540.0,112530.0,0.00012752]
[1756136507248,0.63138725,112540.0,112530.0,0.00012752]
[1756136507505,0.63150725,112540.0,112530.0,0.00012752]
[1756136507740,0.64541788,112540.0,112530.0,0.00012752]
[1756136507989,0.67361782,112540.0,112530.0,0.00012752]
[1756136508228,0.60407506,112540.0,112530.0,0.00012752]
[1756136509199,0.60507506,112540.0,112530.0,0.00012752]
[1756136509446,0.57687103,112540.0,112530.0,0.00012752]
[1756136509884,5.61958631,112540.0,112530.0,0.00012752]
[1756136510100,5.58516314,112540.0,112530.0,0.00012752]
[1756136510308,5.67202851,112540.0,112530.0,0.00112752]
[1756136510523,5.67824872,112540.0,112530.0,0.00012752]
[1756136510948,5.67724872,112540.0,112530.0,0.00012752]
[1756136511135,5.67824872,112540.0,112530.0,0.00012752]
[1756136511385,5.65079195,112540.0,112530.0,0.00012752]
[1756136511604,5.74334195,112540.0,112530.0,0.00012752]
[1756136511814,5.64991195,112540.0,112530.0,0.00012752]
[1756136512032,5.65191195,112540.0,112530.0,0.00012752]
[1756136512261,5.65291195,112540.0,112530.0,0.00012752]
[1756136512715,5.65091195,112540.0,112530.0,0.00012752]
[1756136513179,5.65079195,112540.0,112530.0,0.00012752]
[1756136513635,5.5629223,112540.0,112530.0,0.00012752]
[1756136514069,5.5639223,112540.0,112530.0,0.00012752]
[1756136514332,5.5649223,112540.0,112530.0,0.00012752]
[1756136516714,5.55663254,112540.0,112530.0,0.00012752]
[1756136516948,5.56492611,112540.0,112530.0,0.00012752]
[1756136517182,5.65179576,112540.0,112530.0,0.00012752]
[1756136517613,5.65179576,112540.0,112530.0,0.00209752]
[1756136517614,5.56492793,112540.0,112530.0,0.00209752]
[1756136517829,5.56492793,112540.0,112530.0,0.00527752]
[1756136518044,5.56492793,112540.0,112530.0,0.00012752]
[1756136518253,5.60515783,112540.0,112530.0,0.00012752]
[1756136518486,5.60495783,112540.0,112530.0,0.00527752]
[1756136518969,5.64676777,112540.0,112530.0,0.00527752]
[1756136519223,5.64676777,112540.0,112530.0,0.00330752]
[1756136519431,5.64676777,112540.0,112530.0,0.00527752]
[1756136520187,0.60495783,112540.0,112530.0,0.00527752]
[1756136520846,0.60515783,112540.0,112530.0,0.00012752]
[1756136521051,0.66069863,112540.0,112530.0,0.00012752]
[1756136521290,0.6324946,112540.0,112530.0,0.00012752]
[1756136521486,0.6322946,112540.0,112530.0,0.00527752]
[1756136521690,0.6861586,112540.0,112530.0,0.00330752]
[1756136521899,0.6861586,112540.0,112530.0,0.00012752]
[1756136522107,0.67225273,112540.0,112530.0,0.00012752]
[1756136522516,0.69138417,112540.0,112530.0,0.00012752]
[1756136523805,0.69138417,112540.0,112530.0,0.00330752]
[1756136524008,0.69138417,112540.0,112530.0,0.00527752]
[1756136524821,0.6101834,112540.0,112530.0,0.00527752]
[1756136525220,0.62409445,112540.0,112530.0,0.00527752]
[1756136525422,0.61583866,112540.0,112530.0,0.00527752]
[1756136525768,0.62416213,112540.0,112530.0,0.00527752]
[1756136527923,0.62316213,112540.0,112530.0,0.00527752]
[1756136528152,0.62216213,112540.0,112530.0,0.00527752]
[1756136528586,0.62416213,112540.0,112530.0,0.00527752]
[1756136529009,0.62216213,112540.0,112530.0,0.00527752]
[1756136532104,0.62222684,112540.0,112530.0,0.00527752]
[1756136532958,0.62242684,112540.0,112530.0,0.00012752]
[1756136533394,0.73320603,112540.0,112530.0,0.00012752]
[1756136533607,0.77483578,112540.0,112530.0,0.00012752]
[1756136534040,0.74663175,112540.0,112530.0,0.00012752]
[1756136534256,0.63242533,112540.0,112530.0,0.00330752]
[1756136534929,0.63242533,112540.0,112530.0,0.00527752]
[1756136535387,0.63245324,112540.0,112530.0,0.00527752]
[1756136535586,0.6085437,112540.0,112530.0,0.00527752]
[1756136536010,0.60854466,112540.0,112530.0,0.00527752]
[1756136536260,0.60854538,112540.0,112530.0,0.00527752]
[1756136536479,0.60834538,112540.0,112530.0,0.00527752]
[1756136536696,0.62225605,112540.0,112530.0,0.00527752]
[1756136537358,0.62225605,112540.0,112530.0,0.00330752]
[1756136537574,0.62225605,112540.0,112530.0,0.00527752]
[1756136540472,0.60312461,112540.0,112530.0,0.00527752]
[1756136540910,0.22289471,112540.0,112530.0,0.1830079]
[1756136541131,0.20898404,112540.0,112530.0,0.1830079]
[1756136541614,0.20898404,112540.0,112530.0,0.00627752]
[1756136541831,0.54898404,112540.0,112530.0,0.00627752]
[1756136543691,0.54898404,112540.0,112530.0,0.00727752]
[1756136544031,0.54918404,112540.0,112530.0,0.00727752]
[1756136544230,0.54898404,112540.0,112530.0,0.00727752]
[1756136544438,0.56289353,112540.0,112530.0,0.00727752]
[1756136545074,0.56288314,112540.0,112530.0,0.00727752]
[1756136545520,0.55663133,112540.0,112530.0,0.00727752]
[1756136545723,0.5628832,112540.0,112530.0,0.00727752]
[1756136545933,0.56288336,112540.0,112530.0,0.00727752]
[1756136546839,0.56288336,112540.0,112530.0,0.1850079]
[1756136547262,0.55663149,112540.0,112530.0,0.1850079]
[1756136547681,0.3789169,112540.0,112530.0,0.1850079]
[1756136548092,0.54829574,112540.0,112530.0,0.1850079]
[1756136548458,0.37058115,112540.0,112530.0,0.1850079]
[1756136548660,0.37058115,112540.0,112530.0,0.1840079]
[1756136549196,0.37058115,112540.0,112530.0,0.1850079]
[1756136550020,0.37058115,112540.0,112530.0,0.1840079]
[1756136550482,0.37058115,112540.0,112530.0,0.1860079]
[1756136550813,0.03058115,112540.0,112530.0,0.20245692]
[1756136551017,0.01667166,112540.0,112530.0,0.29034167]
[1756136551427,0.34,112550.0,112540.0,0.17771459]
[1756136551656,0.35666063,112550.0,112540.0,0.18282459]
[1756136552232,0.53435943,112550.0,112540.0,0.18282459]
[1756136553861,0.53435943,112550.0,112540.0,0.18382459]
[1756136554406,0.53455943,112550.0,112540.0,0.00611]
[1756136554623,0.53455943,112550.0,112540.0,0.00412]
[1756136554849,0.5178988,112550.0,112540.0,0.001]
[1756136555070,0.53455579,112550.0,112540.0,0.001]
[1756136555740,0.53467579,112550.0,112540.0,0.001]
[1756136555955,0.54300491,112550.0,112540.0,0.001]
[1756136556929,0.5569141,112550.0,112540.0,0.001]
[1756136557358,0.5567941,112550.0,112540.0,0.001]
[1756136557573,0.5569141,112550.0,112540.0,0.001]
[1756136557797,0.66269491,112550.0,112540.0,0.001]
[1756136558372,0.6971467,112550.0,112540.0,0.001]
[1756136559747,0.66894267,112550.0,112540.0,0.001]
[1756136559950,0.51771459,112540.0,112530.0,0.00012752]
[1756136560165,0.54290243,112540.0,112530.0,0.00012752]
[1756136560606,0.53457158,112540.0,112530.0,0.00012752]
[1756136561162,0.51791459,112540.0,112530.0,0.00012752]
[1756136561363,0.53457598,112540.0,112530.0,0.00012752]
[1756136561576,0.53437598,112540.0,112530.0,0.00623752]
[1756136562100,0.53457598,112540.0,112530.0,0.00623752]
[1756136562688,0.53457598,112540.0,112530.0,0.00112752]
[1756136562887,0.35686139,112540.0,112530.0,0.00112752]
[1756136563088,0.53457598,112540.0,112530.0,0.00112752]
[1756136563610,0.53437598,112540.0,112530.0,0.00623752]
[1756136563839,0.53457598,112540.0,112530.0,0.00623752]
[1756136564025,0.53457598,112540.0,112530.0,0.00424752]
[1756136564463,0.51791459,112540.0,112530.0,0.00424752]
[1756136564677,0.53457905,112540.0,112530.0,0.00424752]
[1756136565395,0.54848896,112540.0,112530.0,0.00424752]
[1756136566342,0.54848896,112540.0,112530.0,0.00112752]
[1756136566559,0.55694286,112540.0,112530.0,0.00112752]
[1756136566789,0.61873435,112540.0,112530.0,0.00112752]
[1756136567000,0.59053032,112540.0,112530.0,0.00112752]
[1756136567202,0.59041032,112540.0,112530.0,0.00112752]
[1756136567839,0.6673568,112540.0,112530.0,0.00112752]
[1756136568058,0.6673568,112540.0,112530.0,0.00012752]
[1756136569081,0.69556083,112540.0,112530.0,0.00012752]
[1756136570489,5.69556083,112540.0,112530.0,0.00012752]
[1756136570708,0.51773038,112530.0,112520.0,0.0004]
[1756136570912,5.69171275,112530.0,112520.0,1e-08]
[1756136572367,5.69371275,112530.0,112520.0,1e-08]
[1756136572571,5.81116177,112530.0,112520.0,1e-08]
[1756136572777,0.51774617,112520.0,112510.0,1e-08]
[1756136572987,5.62981775,112520.0,112510.0,1e-08]
[1756136573217,5.68547855,112520.0,112510.0,1e-08]
[1756136573646,0.51779358,112490.0,112480.0,0.00312]
[1756136573866,0.51780938,112480.0,112470.0,0.00352]
[1756136574095,0.51780938,112480.0,112470.0,0.00551]
[1756136574774,0.55733583,112480.0,112470.0,0.00239]
[1756136574995,0.55733583,112480.0,112470.0,0.00599007]
[1756136575207,0.57125173,112480.0,112470.0,0.00599007]
[1756136575434,0.67230144,112480.0,112470.0,0.00799007]
[1756136575671,0.5987885,112480.0,112470.0,0.00799007]
[1756136575918,0.62699253,112480.0,112470.0,0.00288007]
[1756136576317,0.62699253,112480.0,112470.0,0.00588007]
[1756136576541,0.5987885,112480.0,112470.0,0.00588007]
[1756136576756,5.68565815,112480.0,112470.0,0.00288007]
[1756136577185,5.68565815,112480.0,112470.0,0.00588007]
[1756136577404,5.68565815,112480.0,112470.0,0.00388007]
[1756136577606,5.68577815,112480.0,112470.0,0.00388007]
[1756136577849,5.68577815,112480.0,112470.0,0.00488007]
[1756136578067,5.71699441,112480.0,112470.0,0.00488007]
[1756136578284,5.71699441,112480.0,112470.0,0.00388007]
[1756136578493,5.71811441,112480.0,112470.0,0.00388007]
[1756136578713,5.71811441,112480.0,112470.0,0.00088007]
[1756136579103,5.71799441,112480.0,112470.0,0.00088007]
[1756136579330,5.69065764,112480.0,112470.0,0.00088007]
[1756136579780,5.69065764,112480.0,112470.0,0.00188007]
[1756136580000,5.60358799,112480.0,112470.0,0.00704007]
[1756136580421,0.60358799,112480.0,112470.0,0.00704007]
[1756136581483,0.26358799,112480.0,112470.0,0.00704007]
[1756136581695,0.60358799,112480.0,112470.0,0.00704007]
[1756136581914,0.26358799,112480.0,112470.0,0.18486526]
[1756136582381,0.26258799,112480.0,112470.0,0.00704007]
[1756136583291,0.08477861,112480.0,112470.0,0.18486526]
[1756136583551,0.04525216,112480.0,112470.0,0.18386526]
[1756136583773,0.04625216,112480.0,112470.0,0.18386526]
[1756136584016,0.04625216,112480.0,112470.0,0.18486526]
[1756136584232,0.03133626,112480.0,112470.0,0.18486526]
[1756136584673,0.25775169,112510.0,112490.0,0.17779358]
[1756136584899,0.19437668,112510.0,112500.0,0.18293777]
[1756136585141,0.17776197,112510.0,112500.0,0.18293777]
[1756136585337,0.01661576,112510.0,112500.0,0.18293777]
[1756136585558,0.17774617,112520.0,112500.0,0.18293777]
[1756136585788,0.19436255,112520.0,112510.0,0.18097197]
[1756136586029,0.53436255,112520.0,112510.0,0.18292197]
[1756136586256,0.20827543,112520.0,112510.0,0.18292197]
[1756136586743,0.54827543,112520.0,112510.0,0.18292197]
[1756136586965,0.5793627,112520.0,112510.0,0.18292197]
[1756136587467,0.17776197,112510.0,112500.0,0.17977777]
[1756136587687,0.17776197,112510.0,112500.0,0.00195]
[1756136587907,0.19438204,112510.0,112500.0,0.17972777]
[1756136588572,0.19438204,112510.0,112500.0,0.00195]
[1756136589219,0.19426429,112510.0,112500.0,0.00195]
[1756136589442,0.19426429,112510.0,112500.0,0.00516]
[1756136590401,0.19426429,112510.0,112500.0,0.18393777]
[1756136590646,0.19426429,112510.0,112500.0,0.18593777]
[1756136591051,0.19426429,112510.0,112500.0,0.00816]
[1756136591843,0.19426429,112510.0,112500.0,0.18593777]
[1756136592046,0.19426429,112510.0,112500.0,0.00816]
[1756136592667,0.19427171,112510.0,112500.0,0.00816]
[1756136592870,0.19427171,112510.0,112500.0,0.18593777]
[1756136593077,0.01662749,112510.0,112500.0,0.18593777]
[1756136593235,0.61988809,112520.0,112500.0,0.18593777]
[1756136593438,0.61988809,112520.0,112510.0,0.18097197]
[1756136593650,0.61988809,112520.0,112510.0,0.18292197]
[1756136594293,0.61988809,112520.0,112510.0,0.00516]
[1756136594922,0.61988809,112520.0,112510.0,0.18392197]
[1756136595134,0.57937478,112520.0,112510.0,0.18392197]
[1756136596248,0.06162861,112520.0,112510.0,0.18392197]
[1756136596467,0.2254619,112520.0,112510.0,0.18392197]
[1756136596687,0.5654619,112520.0,112510.0,0.18392197]
[1756136597131,0.38771573,112520.0,112510.0,0.18392197]
[1756136597350,0.5654619,112520.0,112510.0,0.18392197]
[1756136597589,0.5654619,112520.0,112510.0,0.18292197]
[1756136597811,0.5654619,112520.0,112510.0,0.18592197]
[1756136598036,0.5654619,112520.0,112510.0,0.18992197]
[1756136599463,0.38771573,112520.0,112510.0,0.18992197]
[1756136599693,0.40162754,112520.0,112510.0,0.18992197]
[1756136599923,0.40162754,112520.0,112510.0,0.20737099]
[1756136602330,0.38499908,112520.0,112510.0,0.29425574]
[1756136602540,0.40162615,112520.0,112510.0,0.29425574]
[1756136603247,0.38771434,112520.0,112510.0,0.29425574]
[1756136603873,0.56546051,112520.0,112510.0,0.29425574]
[1756136604081,0.38771434,112520.0,112510.0,0.29425574]
[1756136604314,0.56546051,112520.0,112510.0,0.29425574]
[1756136605125,0.38771434,112520.0,112510.0,0.29425574]
[1756136606467,0.40162517,112520.0,112510.0,0.29425574]
[1756136606698,0.57937134,112520.0,112510.0,0.29425574]
[1756136606945,0.40162517,112520.0,112510.0,0.29425574]
[1756136607847,0.03058578,112520.0,112510.0,1.40665603]
[1756136608072,0.01395871,112520.0,112510.0,1.13845603]
[1756136609682,0.01395871,112520.0,112510.0,1.53845603]
[1756136609905,0.01395871,112520.0,112510.0,0.69425574]
[1756136611880,4.788e-05,112520.0,112510.0,0.69425574]
[1756136613009,4.788e-05,112520.0,112510.0,1.53845603]
[1756136613222,4.788e-05,112520.0,112510.0,0.29425574]
[1756136613430,4.788e-05,112520.0,112510.0,1.13545603]
[1756136613633,4.788e-05,112520.0,112510.0,1.53545603]
[1756136613837,4.788e-05,112520.0,112510.0,1.53945603]
[1756136614378,4.788e-05,112520.0,112510.0,0.69525574]
[1756136614635,4.788e-05,112520.0,112510.0,0.69125574]
[1756136614849,4.788e-05,112520.0,112510.0,0.96345574]
[1756136615113,4.788e-05,112520.0,112510.0,0.99017674]
[1756136617346,4.788e-05,112520.0,112510.0,0.98617674]
[1756136618239,4.788e-05,112520.0,112510.0,0.98217674]
[1756136618698,4.788e-05,112520.0,112510.0,0.98717674]
[1756136621314,4.788e-05,112520.0,112510.0,0.56045574]
[1756136622856,0.00200788,112520.0,112510.0,0.56045574]
[1756136623547,4.788e-05,112520.0,112510.0,0.56045574]
[1756136623991,0.00200788,112520.0,112510.0,0.56045574]
[1756136624435,0.00200788,112520.0,112510.0,0.55529574]
[1756136624655,0.00200788,112520.0,112510.0,0.56062574]
[1756136624873,0.00200788,112520.0,112510.0,0.55762574]
[1756136625094,0.00200788,112520.0,112510.0,0.29012574]
[1756136625310,0.00200788,112520.0,112510.0,0.28742574]
[1756136625502,0.00200788,112520.0,112510.0,0.28842574]
[1756136625730,0.00200788,112520.0,112510.0,0.29042574]
[1756136626185,4.788e-05,112520.0,112510.0,0.29042574]
[1756136626977,0.59763717,112540.0,112530.0,0.17773038]
[1756136627195,0.43589992,112540.0,112530.0,0.17773038]
[1756136627416,0.61361451,112540.0,112530.0,0.17773038]
[1756136627652,0.61573451,112540.0,112530.0,0.17773038]
[1756136628794,0.61673451,112540.0,112530.0,0.17773038]
[1756136629269,0.64313935,112540.0,112530.0,0.17773038]
[1756136630150,0.64313935,112540.0,112520.0,0.17773185]
[1756136630396,0.51985038,112530.0,112510.0,0.29098383]
[1756136630626,0.17970617,112520.0,112510.0,0.20409908]
[1756136630846,0.19635664,112520.0,112510.0,0.20409908]
[1756136631749,0.19636566,112520.0,112510.0,0.20409908]
[1756136632384,0.19636566,112520.0,112510.0,0.20609908]
[1756136632610,0.19636566,112520.0,112510.0,0.20709908]
[1756136633033,0.01861949,112520.0,112510.0,0.20709908]
[1756136633247,0.01861949,112520.0,112510.0,0.20809908]
[1756136633747,0.19636566,112520.0,112510.0,0.20809908]
[1756136633965,0.01861949,112520.0,112510.0,0.21021908]
[1756136634189,0.01665949,112520.0,112510.0,0.21342908]
[1756136634403,0.51773127,112530.0,112520.0,0.17774617]
[1756136634628,0.54468821,112530.0,112520.0,0.17774617]
[1756136635078,0.02499694,112530.0,112520.0,0.18307617]
[1756136635300,0.01666463,112530.0,112520.0,0.18307617]
[1756136635516,0.01865463,112530.0,112520.0,0.17774617]
[1756136635950,0.01865463,112530.0,112520.0,0.18093617]
[1756136636814,0.03256413,112530.0,112520.0,0.18289617]
[1756136637515,0.03256413,112530.0,112520.0,0.17774617]
[1756136637760,0.03256413,112530.0,112520.0,0.18289617]
[1756136637979,0.21029451,112530.0,112520.0,0.18289617]
[1756136638198,0.21030288,112530.0,112520.0,0.17774617]
[1756136638412,0.0325725,112530.0,112520.0,0.17774617]
[1756136638639,0.21030288,112530.0,112520.0,0.17774617]
[1756136638850,0.0325725,112530.0,112520.0,0.17774617]
[1756136639201,0.0158995,112530.0,112520.0,0.17774617]
[1756136639405,0.0158995,112530.0,112520.0,0.17970617]
[1756136639869,0.0158995,112530.0,112520.0,0.18289617]
[1756136640005,0.0139095,112530.0,112520.0,0.18289617]
[1756136640446,0.19163988,112530.0,112520.0,0.17774617]
[1756136640674,0.19364988,112530.0,112520.0,0.18289617]
[1756136640897,0.0159195,112530.0,112520.0,0.18289617]
[1756136641773,0.0139095,112530.0,112520.0,0.18289617]
[1756136646967,0.53163988,112530.0,112520.0,0.18289617]
[1756136647183,0.3539095,112530.0,112520.0,0.18289617]
[1756136648460,0.3539095,112530.0,112520.0,0.20034519]
[1756136648690,0.0139095,112530.0,112520.0,0.28722994]
[1756136649153,4.795e-05,112540.0,112530.0,0.1951794]
[1756136649390,4.795e-05,112540.0,112530.0,0.28402415]
[1756136649608,4.795e-05,112540.0,112530.0,0.28721415]
[1756136650056,4.795e-05,112540.0,112530.0,0.31377467]
[1756136650938,4.795e-05,112540.0,112530.0,0.28721415]
[1756136652050,4.795e-05,112540.0,112530.0,0.29021415]
[1756136652485,4.795e-05,112540.0,112530.0,0.31670119]
[1756136652776,4.795e-05,112540.0,112530.0,0.71670119]
[1756136653016,4.795e-05,112540.0,112530.0,1.64436197]
[1756136653473,4.795e-05,112540.0,112530.0,0.84735042]
[1756136654400,4.795e-05,112540.0,112530.0,0.78354258]
[1756136656656,4.795e-05,112540.0,112530.0,0.78254258]
[1756136656869,4.795e-05,112540.0,112530.0,0.78554258]
[1756136657564,4.795e-05,112540.0,112530.0,1.74939552]
[1756136657809,4.795e-05,112540.0,112530.0,1.81120336]
[1756136658043,4.795e-05,112540.0,112530.0,1.81520336]
[1756136658915,0.54014037,112580.0,112570.0,0.17766722]
[1756136659129,0.56720858,112580.0,112570.0,0.17766722]
[1756136659344,0.56932858,112580.0,112570.0,0.17766722]
[1756136659563,0.39167714,112580.0,112570.0,0.17766722]
[1756136659780,0.36459683,112580.0,112570.0,0.17766722]
[1756136660000,0.38955279,112580.0,112570.0,0.17766722]
[1756136660184,0.38955279,112580.0,112570.0,0.28184933]
[1756136660442,0.38954858,112580.0,112570.0,0.28184933]
[1756136660648,0.38954858,112580.0,112570.0,0.27669933]
[1756136661062,0.39054858,112580.0,112570.0,0.27669933]
[1756136661486,0.40445178,112580.0,112570.0,0.27669933]
[1756136662123,0.58210322,112580.0,112570.0,0.27669933]
[1756136662330,0.24422322,112580.0,112560.0,0.1776688]
[1756136662535,0.00212,112570.0,112560.0,0.1776688]
[1756136663162,0.17978722,112570.0,112560.0,0.1776688]
[1756136664025,0.19641975,112570.0,112560.0,0.17768301]
[1756136664340,0.19641975,112570.0,112560.0,0.17868301]
[1756136664341,0.20473611,112570.0,112560.0,0.17868301]
[1756136665712,0.17978722,112570.0,112560.0,0.17868301]
[1756136665936,0.21015084,112580.0,112570.0,0.17766722]
[1756136666377,0.21015084,112580.0,112560.0,0.17768301]
[1756136666378,0.21425084,112580.0,112560.0,0.17768301]
[1756136666578,0.22815494,112580.0,112560.0,0.17768301]
[1756136666777,0.17766722,112570.0,112560.0,0.17768301]
[1756136666994,0.18176722,112570.0,112560.0,0.17768301]
[1756136667193,0.18276722,112570.0,112560.0,0.17768301]
[1756136668167,0.18176722,112570.0,112550.0,0.18655624]
[1756136668383,0.18276722,112570.0,112550.0,0.18655624]
[1756136668831,0.17768301,112560.0,112550.0,0.18655624]
[1756136669054,0.18178301,112560.0,112550.0,0.1776988]
[1756136669275,0.0041,112560.0,112550.0,0.1776988]
[1756136669505,0.18178301,112560.0,112550.0,0.1776988]
[1756136669733,0.53568865,112560.0,112550.0,0.1776988]
[1756136669955,0.35800564,112560.0,112550.0,0.1776988]
[1756136670177,0.53356865,112560.0,112550.0,0.1776988]
[1756136670643,0.53568865,112560.0,112550.0,0.1776988]
[1756136670857,0.35588564,112560.0,112550.0,0.1776988]
[1756136671077,0.35390564,112560.0,112550.0,0.1838988]
[1756136671514,0.01390564,112560.0,112550.0,0.28823257]
[1756136671759,0.01390564,112560.0,112550.0,0.28723257]
[1756136671981,0.341,112570.0,112560.0,0.17768301]
[1756136672191,0.34298,112570.0,112560.0,0.17768301]
[1756136673261,0.34198,112570.0,112560.0,0.17768301]
[1756136673683,0.34298,112570.0,112560.0,0.18288301]
[1756136674107,0.34298,112570.0,112560.0,0.17983301]
[1756136674307,0.34298,112570.0,112560.0,0.17768301]
[1756136674511,0.52064722,112570.0,112560.0,0.17768301]
[1756136674724,0.52276722,112570.0,112560.0,0.17768301]
[1756136675352,0.53667237,112570.0,112560.0,0.17768301]
[1756136675647,0.53667237,112570.0,112550.0,0.1776988]
[1756136676305,0.53667237,112570.0,112560.0,0.17768301]
[1756136676941,0.53567237,112570.0,112560.0,0.17768301]
[1756136677163,0.53667237,112570.0,112560.0,0.17768301]
[1756136677349,0.54500043,112570.0,112560.0,0.17768301]
[1756136677765,0.36621321,112570.0,112560.0,0.17768301]
[1756136677981,0.01590515,112570.0,112560.0,0.28721678]
[1756136678402,0.01590515,112570.0,112560.0,1.15106972]
[1756136678613,0.0001279,112580.0,112570.0,0.19511624]
[1756136678822,0.0001279,112580.0,112570.0,0.28415099]
[1756136679033,0.0001279,112580.0,112570.0,0.28720099]
[1756136679491,0.0001279,112580.0,112570.0,0.68720099]
[1756136679704,0.01390233,112590.0,112580.0,0.19510046]
[1756136679915,0.22602993,112660.0,112630.0,0.17757258]
[1756136679916,0.0004,112640.0,112630.0,0.17757258]
[1756136680134,0.04124832,112640.0,112630.0,0.17757258]
[1756136680352,0.06681037,112640.0,112630.0,0.17972258]
[1756136680568,0.06681037,112640.0,112630.0,0.17872258]
[1756136680788,0.03373339,112640.0,112630.0,0.18177258]
[1756136681207,0.37673339,112640.0,112630.0,0.18177258]
[1756136681419,0.03673339,112640.0,112630.0,0.18177258]
[1756136681646,0.03475339,112640.0,112630.0,0.28610635]
[1756136681858,0.05910682,112640.0,112630.0,0.28610635]
[1756136682280,0.05286492,112640.0,112630.0,0.28610635]
[1756136682700,0.03051149,112640.0,112630.0,0.28610635]
[1756136683191,0.02751149,112640.0,112630.0,0.28610635]
[1756136683417,0.02551149,112640.0,112630.0,0.28610635]
[1756136685135,0.02545959,112640.0,112630.0,0.28610635]
[1756136685573,0.03935511,112640.0,112630.0,0.28610635]
[1756136686255,0.02276194,112640.0,112630.0,0.28610635]
[1756136687424,0.02474194,112640.0,112630.0,0.28610635]
[1756136687655,0.04743844,112640.0,112630.0,0.28610635]
[1756136688759,0.22499525,112640.0,112630.0,0.17757258]
[1756136688988,0.04743844,112640.0,112630.0,0.17757258]
[1756136689224,0.04540986,112640.0,112630.0,0.18277258]
[1756136689465,0.02271336,112640.0,112630.0,0.28710635]
[1756136689694,0.01443941,112640.0,112630.0,0.28810635]
[1756136689923,0.02270931,112640.0,112630.0,0.68810635]
[1756136690589,0.02270931,112640.0,112630.0,0.69010635]
[1756136690870,0.02270931,112640.0,112630.0,0.68910635]
[1756136691375,0.02270931,112640.0,112630.0,0.69110635]
[1756136691599,0.02270931,112640.0,112630.0,0.68910635]
[1756136691815,0.02270931,112640.0,112630.0,0.69010635]
[1756136692042,0.00881379,112640.0,112630.0,0.71980035]
[1756136692941,0.00881379,112640.0,112630.0,0.31980035]
[1756136693165,0.00881379,112640.0,112630.0,0.31880035]
[1756136693389,0.00881379,112640.0,112630.0,0.71980035]
[1756136696453,0.00881379,112640.0,112630.0,0.31980035]
[1756136696903,0.00881379,112640.0,112630.0,0.71980035]
[1756136698836,0.00054389,112640.0,112630.0,0.71980035]
[1756136699054,0.00879794,112640.0,112630.0,0.71980035]
[1756136699941,0.01077794,112640.0,112630.0,0.28790635]
[1756136700403,0.02940637,112640.0,112630.0,0.28790635]
[1756136700627,0.02940637,112640.0,112630.0,0.18357258]
[1756136700628,0.02728637,112640.0,112630.0,0.18357258]
[1756136700867,0.21873843,112640.0,112630.0,0.2010216]
[1756136701091,0.04330162,112640.0,112630.0,0.18257258]
[1756136701318,0.04330978,112640.0,112630.0,0.17757258]
[1756136701540,0.22086659,112640.0,112630.0,0.17957258]
[1756136701756,0.21874659,112640.0,112630.0,0.17957258]
[1756136701979,0.04118978,112640.0,112630.0,0.17957258]
[1756136702734,0.04118978,112640.0,112630.0,0.18257258]
[1756136703180,0.04118978,112640.0,112630.0,0.18157258]
[1756136703402,0.04118978,112640.0,112630.0,0.18470258]
[1756136703621,0.03920978,112640.0,112630.0,0.18781258]
[1756136703839,0.02531453,112640.0,112630.0,0.18257258]
[1756136704055,0.20287134,112640.0,112630.0,0.18257258]
[1756136704272,0.02729453,112640.0,112630.0,0.18257258]
[1756136704752,0.20697134,112640.0,112630.0,0.18257258]
[1756136704979,0.54697134,112640.0,112630.0,0.18257258]
[1756136705683,0.36729453,112640.0,112630.0,0.18257258]
[1756136705906,0.54485134,112640.0,112630.0,0.18257258]
[1756136706168,0.54697134,112640.0,112630.0,0.17857258]
[1756136706600,0.54697134,112640.0,112630.0,0.001]
[1756136706806,0.54485134,112640.0,112630.0,0.17857258]
[1756136707019,0.54697134,112640.0,112630.0,0.001]
[1756136707469,0.53045475,112640.0,112630.0,0.001]
[1756136707693,0.17757258,112630.0,112620.0,0.17758835]
[1756136707938,0.54443926,112630.0,112620.0,0.17758835]
[1756136708168,0.52996814,112630.0,112620.0,0.17758835]
[1756136708391,0.54655976,112630.0,112620.0,0.17758835]
[1756136708632,0.36686718,112630.0,112620.0,0.17758835]
[1756136709111,0.5604564,112630.0,112620.0,0.002]
[1756136709603,0.5583364,112630.0,112620.0,0.17958835]
[1756136709891,0.37878382,112630.0,112620.0,0.18171835]
[1756136710120,0.37878382,112630.0,112620.0,0.18482835]
[1756136710343,0.37878382,112630.0,112620.0,0.18282835]
[1756136710834,0.37878382,112630.0,112620.0,0.28716212]
[1756136711073,0.37978382,112630.0,112620.0,0.28716212]
[1756136711990,0.36588718,112630.0,112620.0,0.28716212]
[1756136717126,0.34929556,112630.0,112620.0,0.28716212]
[1756136717352,0.3659733,112630.0,112620.0,0.28716212]
[1756136717603,0.0259733,112630.0,112620.0,0.28716212]
[1756136717813,0.21389852,112630.0,112620.0,0.17758835]
[1756136718034,0.17758835,112620.0,112610.0,0.17759007]
[1756136718262,0.02710291,112620.0,112610.0,0.51759007]
[1756136718835,0.02710291,112620.0,112610.0,0.18283007]
[1756136719057,0.02497291,112620.0,112610.0,0.18283007]
[1756136719266,0.02497291,112620.0,112610.0,0.28716384]
[1756136719901,0.03886971,112620.0,112610.0,0.28716384]
[1756136720141,0.03886971,112620.0,112610.0,0.28916384]
[1756136720355,0.02222084,112620.0,112610.0,0.28916384]
[1756136720572,0.03886175,112620.0,112610.0,0.28916384]
[1756136721831,0.02496495,112620.0,112610.0,0.68916384]
[1756136723429,0.02694495,112620.0,112610.0,0.17959007]
[1756136723643,0.02694495,112620.0,112610.0,0.18483007]
[1756136724671,0.02496495,112620.0,112610.0,0.18483007]
[1756136725133,0.02496495,112620.0,112610.0,0.28916384]
[1756136725361,0.03886188,112620.0,112610.0,0.28916384]
[1756136726443,0.04084188,112620.0,112610.0,0.28392384]
[1756136726646,0.04084188,112620.0,112610.0,0.17959007]
[1756136726867,0.34688834,112640.0,112620.0,0.17757473]